[Event "GRENKE Chess Classic 2024"]
[Site "Karlsruhe"]
[Date "2024.03.26"]
[Round "1.1"]
[White "Keymer, Vincent"]
[Black "Fridman, Daniel"]
[Result "1/2-1/2"]
[ECO "D05"]
[WhiteElo "2738"]
[BlackElo "2590"]
[Annotator "TA"]
[PlyCount "70"]
[EventDate "2024.03.26"]
[EventType "tourn"]
[EventCountry "GER"]
[SourceTitle "playchess.com"]
[Source "ChessBase"]
[SourceQuality "1"]
[TimeControl "2700+10"]

{[%evp 12,70,10,4,13,0,6,0,0,-29,-22,-51,-41,-38,-44,-37,-31,-40,-37,-39,-40,-40,-39,-42,-49,-40,-40,-33,-40,-38,-31,-58,-49,-45,-42,-57,-16,-12,-16,-14,-5,-10,-4,-7,-5,-14,0,0,-2,-12,0,0,0,-9,0,0,0,0,0,0,0]} 1. d4 {[%emt 0:00:05]} d5 {[%emt 0:00:01]} 2. Nf3 {[%emt 0:00:03]} Nf6 {[%emt 0:00:02]} 3. e3 {[%emt 0:00:02]} e6 {[%emt 0:00:10]} 4. Nbd2 {[%emt 0:00:03]} c5 {[%emt 0:01:49]} 5. b3 {[%emt 0:00:04]} Nc6 {[%emt 0:00:11]} 6. Bb2 {[%emt 0:00:12]} cxd4 {[%emt 0:00:34]} 7. exd4 {[%emt 0:00:05]} g6 {[%emt 0:00:03]} 8. a3 {[%emt 0:04:47]} Bg7 {[%emt 0:00:04]} 9. Bd3 {[%emt 0:00:01]} O-O {[%emt 0:00:02]} 10. Qe2 {[%emt 0:00:36]} Qb6 {[%emt 0:00:35]} 11. O-O {[%emt 0:06:00]} Nd7 $1 {[%emt 0:00:10]} 12. Qe3 {[%emt 0:13:57] [#]} e5 $1 {[%emt 0:00:02]} 13. dxe5 {[%emt 0:00:19]} Qxe3 {[%emt 0:00:02]} 14. fxe3 {[%emt 0:00:04]} Ndxe5 {[%emt 0:00:02]} 15. Rab1 {[%emt 0:04:53]} Nxd3 {[%emt 0:04:37]} 16. cxd3 {[%emt 0:02:03]} Bf5 {[%emt 0:00:02]} 17. e4 {[%emt 0:00:22]} dxe4 {[%emt 0:00:03]} 18. dxe4 {[%emt 0:00:01] [#] Bxg7 would now be deadly.} Be6 {[%emt 0:00:02]} 19. Bxg7 {[%emt 0:01:25]} Kxg7 {[%emt 0:00:02]} 20. Rfc1 {[%emt 0:02:43]} Rfd8 {[%emt 0:01:16]} 21. Rc3 {[%emt 0:00:46]} Rd7 {[%emt 0:00:19]} 22. Rb2 {[%emt 0:02:54]} Rad8 {[%emt 0:00:07]} 23. Kf2 {[%emt 0:00:29]} Nd4 {[%emt 0:09:04]} 24. Nxd4 {[%emt 0:02:28] The position is equal.} Rxd4 {[%emt 0:00:02]} 25. Ke3 {[%emt 0:00:01]} f5 {[%emt 0:00:56][%cal Of5f4]} 26. Rc7+ {[%emt 0:00:41]} R8d7 {[%emt 0:00:02]} 27. Rxd7+ {[%emt 0:00:48]} Rxd7 $11 {[%emt 0:00:02][%mdl 4096] Endgame. KRB-KRN} 28. g3 {[%emt 0:01:58]} fxe4 {[%emt 0:02:52]} 29. Nxe4 {[%emt 0:00:02]} Bf5 {[%emt 0:00:02] White must now prevent ...Re7.} 30. Rd2 {[%emt 0:01:31]} Re7 {[%emt 0:04:49]} 31. Rd4 {[%emt 0:00:01]} Bd7 {[%emt 0:02:42]} 32. Kf2 {[%emt 0:00:36]} Rf7+ {[%emt 0:00:40]} 33. Ke3 {[%emt 0:00:02]} Re7 {[%emt 0:00:24]} 34. Kf2 {[%emt 0:00:01]} Rf7+ {[%emt 0:00:47]} 35. Ke3 {[%emt 0:00:01]} Re7 {Weighted Error Value: White=0.05 (flawless) /Black=0.05 (flawless) .  Inaccurate:     	White=3     	Black=1      OK:         	White=12    	Black=9      Strong:       	---       	Black=1      Brilliant:      	---       	Black=1} 1/2-1/2

[Event "GRENKE Chess Classic 2024"]
[Site "Karlsruhe"]
[Date "2024.03.26"]
[Round "1.2"]
[White "Rapport, Richard"]
[Black "Carlsen, Magnus"]
[Result "1-0"]
[ECO "B12"]
[WhiteElo "2720"]
[BlackElo "2830"]
[Annotator "TA"]
[PlyCount "81"]
[EventDate "2024.03.26"]
[EventType "tourn"]
[EventCountry "GER"]
[SourceTitle "playchess.com"]
[Source "ChessBase"]
[SourceQuality "1"]
[TimeControl "2700+10"]

{[%evp 9,81,-1,18,3,16,8,19,0,0,0,0,0,14,0,0,0,0,0,2,6,18,8,0,11,26,15,29,37,47,-7,70,58,89,35,32,31,19,19,35,12,14,17,10,9,12,2,8,10,16,0,0,0,0,0,-8,-8,0,0,12,21,9,4,8,2,54,25,22,14,16,15,103,17,654,640]} 1. e4 {[%emt 0:00:12]} c6 {[%emt 0:00:08]} 2. d4 {[%emt 0:00:37]} d5 {[%emt 0:00:04]} 3. e5 {[%emt 0:00:02]} Bf5 {[%emt 0:00:10]} 4. h4 {[%emt 0:00:03]} h5 {[%emt 0:03:59]} 5. Bd3 {[%emt 0:00:07]} Bxd3 {[%emt 0:00:03]} 6. Qxd3 {[%emt 0:00:03][%cal Oe5e6]} Qa5+ {[%emt 0:00:45]} 7. c3 {[%emt 0:01:02][%cal Oe5e6]} e6 {[%emt 0:00:26]} 8. a4 {[%emt 0:00:10] The position is equal.} c5 {[%emt 0:04:57]} 9. dxc5 {[%emt 0:00:11]} Qxc5 {[%emt 0:00:46]} 10. Nf3 {[%emt 0:00:21]} Qc7 {[%emt 0:00:32]} 11. Na3 {[%emt 0:01:12]} Bxa3 {[%emt 0:03:55]} 12. Rxa3 {[%emt 0:00:03]} Nd7 {[%emt 0:00:42]} 13. O-O {[%emt 0:01:06]} Ne7 {[%emt 0:00:04]} 14. Re1 {[%emt 0:02:15]} Rc8 {[%emt 0:00:56]} 15. Qd1 {[%emt 0:09:33]} a6 {[%emt 0:04:42]} 16. Bg5 {[%emt 0:04:26]} Ng6 {[%emt 0:03:22]} 17. a5 {[%emt 0:04:53]} O-O {[%emt 0:02:52]} ({Much weaker is} 17... Ngxe5 $6 18. Nxe5 Nxe5 19. Bf4 $16) 18. Ra4 {[%emt 0:01:32]} Rce8 {[%emt 0:12:09]} 19. Rd4 {[%emt 0:02:31]} ({White should play} 19. Rb4 $14) 19... Ndxe5 {[%emt 0:01:24]} (19... Qxa5 $11 20. Bf4 Nxf4 21. Rxf4 Qc7) 20. Nxe5 $14 {[%emt 0:00:30]} Nxe5 {[%emt 0:00:02]} 21. Bf4 {[%emt 0:00:36] White is more active.} (21. Qxh5 $16 Nd7 22. Re3) 21... f6 {[%emt 0:00:02]} 22. Qxh5 {[%emt 0:00:15][%cal Rf4e5]} Qf7 $1 {[%emt 0:00:34]} 23. Qxf7+ {[%emt 0:03:25]} Nxf7 {[%emt 0:00:02][%cal Be5f7,Bf7d8,Bd8c6,Bc6a5,Ba5c4,Bc4d2][%mdl 32]} 24. Bh2 {[%emt 0:01:14]} Kh7 {[%emt 0:03:52]} 25. g4 {[%emt 0:02:15]} Nd8 {[%emt 0:00:47]} 26. Bd6 {[%emt 0:00:08]} Rg8 {[%emt 0:00:42]} 27. Rb4 {[%emt 0:00:17]} Nc6 {[%emt 0:00:12][%csl LRa5,LRb4]} 28. Rxb7 {[%emt 0:00:06] Threatens to win with b4.} Nxa5 {[%emt 0:00:02]} 29. Rd7 {[%emt 0:05:05] Black must now prevent Be7.} Nc4 {[%emt 0:00:12]} 30. b3 {[%emt 0:00:03]} Nd2 {[%emt 0:00:20] And now ...Nf3+ would win.} 31. Re2 {[%emt 0:00:54]} Nxb3 {[%emt 0:01:03]} 32. Be7 {[%emt 0:00:10] Prevents Rd8.} Kh6 {[%emt 0:00:25]} 33. Kf1 {[%emt 0:02:13]} ({But not} 33. Rxe6 Nc5 34. Bxc5 (34. g5+ $2 Kh5 $19) 34... Rxe6 35. Be3+ Kg6 $17) 33... e5 {[%emt 0:00:09]} 34. Rb2 {[%emt 0:00:10]} Na5 {[%emt 0:00:06]} 35. Rb6 {[%emt 0:00:12][%cal Oe7f6] Hoping for Bxf6!} Nc4 {[%emt 0:00:04]} 36. Rxa6 {[%emt 0:00:13][%cal Oe7f6] Bxf6! would now be deadly.} Ra8 {[%emt 0:00:19]} ({Better is} 36... Kg6 $11) 37. Rxa8 {[%emt 0:01:39]} Rxa8 {[%emt 0:00:01]} 38. Rxd5 {[%emt 0:00:02]} Ra2 {[%emt 0:00:22]} 39. Bc5 {[%emt 0:00:51]} Rc2 {[%emt 0:00:14] [#]} (39... Kh7 $1 $11 {remains equal.}) 40. Rd3 {[%emt 0:00:06]} (40. Rd7 $1 $16) 40... Nd2+ $2 {[%emt 0:00:06][%mdl 8192] [#]} (40... Kh7 $11) 41. Rxd2 $1 {[%emt 0:00:14][%mdl 512] Weighted Error Value: White=0.13 (very precise) /Black=0.33.  Loses game:     	---       	Black=1      Mistake:       	White=3     	Black=3      Inaccurate:     	White=1     	Black=1      OK:         	White=16    	Black=15     Best:        	---       	Black=4      Strong:       	---       	Black=1      Brilliant:      	White=1     	---} 1-0

[Event "GRENKE Chess Classic 2024"]
[Site "Karlsruhe"]
[Date "2024.03.26"]
[Round "1.3"]
[White "Vachier-Lagrave, Maxime"]
[Black "Ding, Liren"]
[Result "1/2-1/2"]
[ECO "A45"]
[WhiteElo "2728"]
[BlackElo "2762"]
[Annotator "TA"]
[PlyCount "75"]
[EventDate "2024.03.26"]
[EventType "tourn"]
[EventCountry "GER"]
[SourceTitle "playchess.com"]
[Source "ChessBase"]
[SourceQuality "1"]
[TimeControl "2700+10"]

{[%evp 18,75,-18,-16,-6,-16,-9,-12,-7,-8,-10,-10,-7,-13,-8,-7,-10,-10,-5,-2,-2,0,0,-16,0,-3,0,-4,0,0,-3,-6,-1,0,0,-3,0,-2,0,0,0,0,0,0,0,0,0,0,0,0,0,0,0,0,0,0,0,0,0,0]} 1. d4 {[%emt 0:00:04]} Nf6 {[%emt 0:00:05]} 2. Bf4 {[%emt 0:00:03]} d5 {[%emt 0:00:11]} 3. e3 {[%emt 0:00:03]} c5 {[%emt 0:00:09]} 4. Nf3 {[%emt 0:00:34]} e6 {[%emt 0:00:21]} 5. c3 {[%emt 0:00:41]} Bd6 {[%emt 0:00:42]} 6. Ne5 {[%emt 0:02:30]} Nc6 {[%emt 0:03:15]} 7. Nd2 {[%emt 0:05:46]} Qc7 {[%emt 0:02:13]} 8. Bb5 {[%emt 0:08:14]} O-O {[%emt 0:09:55]} 9. Bxc6 {[%emt 0:00:02]} bxc6 {[%emt 0:00:02]} 10. O-O {[%emt 0:00:03] The position is equal.} Ba6 {[%emt 0:01:08]} 11. Re1 {[%emt 0:00:11]} Ne4 {[%emt 0:00:01]} 12. Nxe4 {[%emt 0:04:02]} dxe4 {[%emt 0:00:01]} 13. Qg4 {[%emt 0:00:54][%cal Ob2b4]} (13. b3 {simplifies} f6 14. Nc4 Bxf4 15. exf4 Bxc4 16. bxc4 f5 17. Qd2) 13... Rae8 {[%emt 0:01:08] [#] Strongly threatening ...cxd4.} 14. b3 $1 {[%emt 0:04:09]} f6 {[%emt 0:03:00]} 15. Nc4 {[%emt 0:00:04]} Bxf4 {[%emt 0:00:05]} 16. Qxf4 {[%emt 0:00:11]} Qxf4 {[%emt 0:00:09]} 17. exf4 {[%emt 0:00:02]} Bxc4 {[%emt 0:00:01]} 18. bxc4 {[%emt 0:00:01]} cxd4 {[%emt 0:00:15]} 19. Rxe4 {[%emt 0:09:09]} dxc3 $11 {[%emt 0:00:01][%mdl 4096] Endgame. KRR-KRR} 20. Re3 {[%emt 0:00:01]} c2 {[%emt 0:00:45]} (20... e5 {simplifies} 21. fxe5 Rxe5 22. Rxc3 Rd8) 21. Rc3 {[%emt 0:00:03]} e5 {[%emt 0:05:12]} 22. fxe5 {[%emt 0:00:02]} Rxe5 {[%emt 0:00:01]} 23. Rxc2 {[%emt 0:00:01]} Kf7 {[%emt 0:00:56]} 24. g3 {[%emt 0:01:34]} Rfe8 {[%emt 0:00:02]} 25. Kf1 {[%emt 0:00:09]} R8e7 {[%emt 0:00:13]} 26. Rb1 {[%emt 0:00:02]} Kg6 {[%emt 0:00:30]} 27. Rb8 {[%emt 0:00:59]} Re1+ {[%emt 0:00:03]} 28. Kg2 {[%emt 0:00:01]} R1e2 {[%emt 0:00:04]} 29. Rxe2 {[%emt 0:00:02]} Rxe2 {[%emt 0:00:01] KR-KR} 30. Rc8 {[%emt 0:00:01]} Rxa2 {[%emt 0:00:02]} 31. Rxc6 {[%emt 0:00:02]} a5 {[%emt 0:00:01]} 32. Ra6 {[%emt 0:00:01]} Rc2 {[%emt 0:00:01]} 33. Rxa5 {[%emt 0:00:01]} Rxc4 34. h4 {[%emt 0:00:03]} h5 {[%emt 0:00:03]} 35. Ra6 {[%emt 0:00:01]} Rb4 {[%emt 0:00:01]} 36. Ra5 {[%emt 0:00:02]} Rc4 {[%emt 0:00:01]} 37. Ra6 {[%emt 0:00:01]} Rb4 {[%emt 0:00:01]} 38. Ra5 {[%emt 0:00:01] A balanced but interesting game.   Weighted Error Value: White=0.01 (flawless) /Black=0.03 (flawless) .  OK:         	White=12    	Black=10     Best:        	White=1     	Black=2      Strong:       	White=1     	---} 1/2-1/2

[Event "GRENKE Chess Classic 2024"]
[Site "Karlsruhe"]
[Date "2024.03.26"]
[Round "2.1"]
[White "Ding, Liren"]
[Black "Rapport, Richard"]
[Result "1/2-1/2"]
[ECO "A62"]
[WhiteElo "2762"]
[BlackElo "2720"]
[Annotator "TA"]
[PlyCount "35"]
[EventDate "2024.03.26"]
[EventType "tourn"]
[EventCountry "GER"]
[SourceTitle "playchess.com"]
[Source "ChessBase"]
[SourceQuality "1"]
[TimeControl "2700+10"]

{[%evp 25,35,16,29,11,21,0,33,0,22,0,44,0]} 1. d4 {[%emt 0:00:04]} Nf6 {[%emt 0:00:04]} 2. c4 {[%emt 0:00:20]} e6 {[%emt 0:00:04]} 3. g3 {[%emt 0:00:09]} c5 {[%emt 0:00:10]} 4. d5 {[%emt 0:00:03]} exd5 {[%emt 0:00:05]} 5. cxd5 {[%emt 0:00:01]} d6 {[%emt 0:00:02]} 6. Nc3 {[%emt 0:00:07]} g6 {[%emt 0:00:02]} 7. Bg2 {[%emt 0:00:03]} Bg7 {[%emt 0:00:04]} 8. Nf3 {[%emt 0:00:03]} O-O {[%emt 0:00:03]} 9. O-O {[%emt 0:00:02]} Re8 {[%emt 0:00:07]} 10. Re1 {[%emt 0:02:55]} a6 {[%emt 0:00:19]} 11. a4 {[%emt 0:00:03]} Nbd7 {[%emt 0:00:03]} 12. Bf4 {[%emt 0:01:53]} Qc7 {[%emt 0:00:05]} 13. h3 {[%emt 0:03:56]} Rb8 {[%emt 0:01:29]} 14. e4 {[%emt 0:00:50]} Nh5 {[%emt 0:01:29]} 15. Be3 {[%emt 0:06:23]} Nhf6 {[%emt 0:04:21]} 16. Bf4 {[%emt 0:00:01][%cal Oe4e5]} Nh5 {[%emt 0:00:01]} 17. Be3 {[%emt 0:00:02]} Nhf6 {[%emt 0:00:01]} 18. Bf4 {[%emt 0:01:28] An uneventful encounter.   Weighted Error Value: White=0.19 (very precise) /Black=0.09 (flawless) .  Inaccurate:     	White=1     	Black=1      OK:         	---       	Black=1      Best:        	---       	Black=2} 1/2-1/2

[Event "GRENKE Chess Classic 2024"]
[Site "Karlsruhe"]
[Date "2024.03.26"]
[Round "2.2"]
[White "Fridman, Daniel"]
[Black "Carlsen, Magnus"]
[Result "0-1"]
[ECO "A47"]
[WhiteElo "2590"]
[BlackElo "2830"]
[Annotator "TA"]
[PlyCount "136"]
[EventDate "2024.03.26"]
[EventType "tourn"]
[EventCountry "GER"]
[SourceTitle "playchess.com"]
[Source "ChessBase"]
[SourceQuality "1"]
[TimeControl "2700+10"]

{[%evp 67,136,0,0,-108,-108,-141,-140,-135,-182,-162,-173,-155,-14,-15,-14,-42,-17,-17,-17,-16,-17,-15,0,-67,-49,-44,-45,-39,-35,-55,-6,-106,-171,-173,-166,-220,-225,-216,-215,-223,-200,-205,-218,-231,-165,-409,-397,-504,-489,-489,-489,-489,-489,-1366,-465,-1302,-580,-29978,-29979,-29979,-29979,-29979,-29980,-29980,-29981,-29981,-29982,-29982,-29983,-29983,-29983]} 1. d4 {[%emt 0:00:02]} Nf6 {[%emt 0:00:04]} 2. Nf3 {[%emt 0:00:02]} b6 {[%emt 0:00:35]} 3. g3 {[%emt 0:01:26]} Bb7 {[%emt 0:00:03]} 4. Bg2 {[%emt 0:00:02]} g6 {[%emt 0:00:01]} 5. c4 {[%emt 0:00:05]} Bg7 {[%emt 0:00:03]} 6. O-O {[%emt 0:00:03]} O-O {[%emt 0:00:03]} 7. d5 {[%emt 0:00:06]} Na6 {[%emt 0:00:09] A50: Damenindisch (ohne e7-e6).} 8. Nc3 {[%emt 0:00:25]} Nc5 {[%emt 0:00:14]} 9. Nd4 {[%emt 0:00:54]} e5 {[%emt 0:00:07]} 10. Nb3 {[%emt 0:00:02]} d6 {[%emt 0:00:31]} 11. Nxc5 {[%emt 0:00:09]} bxc5 {[%emt 0:00:08]} 12. a3 {[%emt 0:01:09]} Nd7 $146 {[%emt 0:01:10]} ({Predecessor:} 12... Ba6 13. Qa4 Qc8 14. b4 Nd7 15. Nb5 Nb6 16. Qb3 Bxb5 17. cxb5 c4 18. Qc2 a6 19. bxa6 Qxa6 {0-1 Sargissian,G (2671)-Grischuk,A (2779) Wch Blitz 7th 2013 (13)}) 13. e4 {[%emt 0:02:49]} f5 {[%emt 0:00:21]} 14. b4 {[%emt 0:00:25]} Ba6 {[%emt 0:02:21]} 15. Qd3 {[%emt 0:00:56]} Bc8 {[%emt 0:03:14]} 16. Na4 {[%emt 0:02:52]} Nf6 {[%emt 0:01:01]} 17. f3 {[%emt 0:00:49]} cxb4 {[%emt 0:04:57]} 18. axb4 {[%emt 0:00:04]} f4 {[%emt 0:00:02]} 19. Nc3 {[%emt 0:00:56]} g5 {[%emt 0:01:24]} 20. g4 {[%emt 0:00:53]} h5 {[%emt 0:00:18]} 21. h3 {[%emt 0:00:02]} hxg4 {[%emt 0:02:13]} 22. hxg4 {[%emt 0:00:03]} Nxg4 {[%emt 0:00:40]} 23. fxg4 {[%emt 0:08:31]} Bxg4 {[%emt 0:00:02]} 24. Bh3 {[%emt 0:00:10]} Qd7 {[%emt 0:01:08]} 25. Bxg4 {[%emt 0:00:47]} Qxg4+ {[%emt 0:00:02]} 26. Kf2 {[%emt 0:00:01]} Qh4+ {[%emt 0:02:07]} 27. Ke2 {[%emt 0:00:18]} g4 {[%emt 0:00:28]} 28. Kd1 {[%emt 0:00:45]} f3 {[%emt 0:00:39]} 29. Kc2 {[%emt 0:00:42]} f2 {[%emt 0:00:36]} 30. Qe2 {[%emt 0:02:24]} Rf3 {[%emt 0:01:45]} 31. Be3 {[%emt 0:01:50]} Raf8 {[%emt 0:00:04]} 32. Rxa7 {[%emt 0:00:02]} g3 {[%emt 0:00:24]} 33. Ra8 {[%emt 0:00:02]} Rxa8 {[%emt 0:07:01]} 34. Qxf3 {[%emt 0:00:03]} Qh3 $1 {[%emt 0:00:03]} 35. Rh1 {[%emt 0:05:41]} (35. Rxf2 $2 Rf8 36. Qe2 gxf2 37. Bxf2 Bh6 $17) (35. Qd1 $1 $11 {war der einzige Weg, das Gleichgewicht zu halten.}) 35... Rf8 $1 $17 {[%emt 0:00:03]} 36. Rxh3 {[%emt 0:00:03]} Rxf3 {[%emt 0:00:04]} 37. Bxf2 {[%emt 0:00:02]} Rxf2+ {[%emt 0:00:06]} 38. Kb3 {[%emt 0:00:01]} g2 {[%emt 0:03:21]} 39. Rg3 {[%emt 0:00:03]} Kf7 {[%emt 0:00:20]} (39... Kh7 $1 $17 {Weiss muss nun ...Bf6 beachten.} 40. c5 (40. Nb5 $2 Rf3+ 41. Rxf3 g1=Q $19) 40... Bh6) 40. c5 $1 $11 {[%emt 0:01:25]} (40. Nb5 $2 Bh6 41. c5 dxc5 42. bxc5 Rf3+ 43. Rxf3+ Bf4 $19) 40... Bf8 {[%emt 0:03:10]} 41. Kc4 {[%emt 0:07:44]} Bh6 {[%emt 0:01:10]} 42. b5 {[%emt 0:02:04]} dxc5 {[%emt 0:03:06]} (42... Bf4 $5 43. Rg4 $8 dxc5 $11) 43. d6 $1 {[%emt 0:00:06]} cxd6 {[%emt 0:00:01]} 44. b6 {[%emt 0:00:01]} Rb2 {[%emt 0:00:02]} (44... Bf4 $5 45. Rg4 $8 Rb2 $11) 45. b7 {[%emt 0:00:07]} (45. Nd5 $1 $11) 45... Rb4+ {[%emt 0:02:01]} (45... Rxb7 {vereinfacht} 46. Rxg2 Rb4+ 47. Kd5 Rd4+) 46. Kd5 {[%emt 0:00:39]} Rxb7 {[%emt 0:00:02]} 47. Rxg2 {[%emt 0:00:08]} Rb6 {[%emt 0:00:28]} 48. Ra2 {[%emt 0:01:32]} Rb3 {[%emt 0:01:38]} (48... Kf6 $15) 49. Ra7+ {[%emt 0:00:35]} (49. Rc2 $11) 49... Kf6 $1 $17 {[%emt 0:00:58]} 50. Kc4 {[%emt 0:00:41]} Rb4+ {[%emt 0:00:01]} 51. Kd5 {[%emt 0:00:02]} (51. Kd3 $142 Rd4+ 52. Kc2) 51... Bd2 $19 {[%emt 0:01:04]} 52. Ne2 {[%emt 0:00:19]} Rb3 $1 {[%emt 0:01:13]} 53. Ra2 {[%emt 0:02:21] [#]} (53. Kxd6 Re3 54. Ng1 Rd3+ (54... Rxe4 55. Nf3 $17) 55. Kc6 c4 $19) 53... Bb4 $1 {[%emt 0:00:07]} 54. Kxd6 {[%emt 0:00:28]} Rd3+ {[%emt 0:00:02]} 55. Kc6 {[%emt 0:00:02] [#]} Kg5 $1 {[%emt 0:00:01]} 56. Kb5 $2 {[%emt 0:00:24]} (56. Ra8 {war angesagt.}) 56... Kg4 $19 {[%emt 0:00:15]} (56... Re3 $2 57. Nc1 $19) 57. Kc4 {[%emt 0:00:02]} Rd1 {[%emt 0:00:20]} 58. Rc2 {[%emt 0:00:11]} Kf3 {[%emt 0:00:03]} 59. Nc1 {[%emt 0:00:14]} Kxe4 {[%emt 0:00:42]} 60. Nb3 {[%emt 0:00:02]} (60. Re2+ $142 Kf3 61. Rxe5 Rxc1+ 62. Kb5) 60... Rd3 {[%emt 0:00:24]} (60... Kf3 $142 {Und ...e4 würde nun gewinnen.} 61. Ra2 e4) 61. Re2+ {[%emt 0:00:18]} ({Viel schlechter ist} 61. Nxc5+ Bxc5 62. Kxc5 Kf3) (61. Rc1 $142) 61... Re3 $19 {[%emt 0:00:02]} 62. Nc1 {[%emt 0:00:01]} Rxe2 {[%emt 0:00:10]} 63. Nxe2 {[%emt 0:00:02]} Kf3 {[%emt 0:00:21]} 64. Ng1+ {[%emt 0:00:01]} Kg2 {[%emt 0:00:09]} 65. Ne2 {[%emt 0:00:01]} Kf2 {[%emt 0:00:02]} 66. Nc1 {[%emt 0:00:08]} e4 {[%emt 0:00:02]} 67. Kd5 {[%emt 0:00:19]} e3 {[%emt 0:00:01]} 68. Nd3+ {[%emt 0:00:01]} Kf1 {[%emt 0:00:01]} 0-1

[Event "GRENKE Chess Classic 2024"]
[Site "Karlsruhe"]
[Date "2024.03.26"]
[Round "2.3"]
[White "Keymer, Vincent"]
[Black "Vachier-Lagrave, Maxime"]
[Result "1/2-1/2"]
[ECO "D20"]
[WhiteElo "2738"]
[BlackElo "2728"]
[Annotator "TA"]
[PlyCount "142"]
[EventDate "2024.03.26"]
[EventType "tourn"]
[EventCountry "GER"]
[SourceTitle "playchess.com"]
[Source "ChessBase"]
[SourceQuality "1"]
[TimeControl "2700+10"]

{[%evp 78,142,872,862,565,82,83,83,284,333,327,313,760,760,634,634,1168,855,522,8,8,8,8,8,8,8,8,8,8,8,8,8,8,8,8,8,8,8,8,8,8,8,83,8,8,8,8,8,8,8,8,8,8,8,8,8,8,8,8,8,8,0,8,0,0,0,8]} 1. d4 {[%emt 0:00:03]} d5 {[%emt 0:00:01]} 2. c4 {[%emt 0:00:10]} dxc4 {[%emt 0:00:02]} 3. e4 {[%emt 0:00:45]} e5 {[%emt 0:00:16]} 4. Nf3 {[%emt 0:00:03]} Bb4+ {[%emt 0:00:16]} 5. Bd2 {[%emt 0:00:06]} Bxd2+ {[%emt 0:00:06]} 6. Nbxd2 {[%emt 0:00:05]} exd4 {[%emt 0:00:23]} 7. Bxc4 {[%emt 0:00:04]} Nc6 {[%emt 0:00:20]} 8. O-O {[%emt 0:03:05]} Nge7 {[%emt 0:01:15] D20: Queen's Gambit Accepted: 3 e3 and 3 e4.} 9. Ng5 $1 {[%emt 0:13:58][%mdl 4] is recently more successful than 9.Nb3.} Ne5 {[%emt 0:00:05]} 10. Bb3 {[%emt 0:03:52]} N7c6 {[%emt 0:00:43]} 11. f4 {[%emt 0:00:17]} Bg4 {[%emt 0:00:04]} 12. Bxf7+ {[%emt 0:00:08]} Nxf7 {[%emt 0:00:01]} 13. Qxg4 {[%emt 0:00:12]} Nxg5 {[%emt 0:00:02]} 14. fxg5 {[%emt 0:00:06]} Qc8 {[%emt 0:00:02]} 15. Qg3 {[%emt 0:01:37]} Qd7 {[%emt 0:01:11]} 16. g6 {[%emt 0:00:02]} O-O-O {[%emt 0:01:19]} 17. Rf7 {[%emt 0:00:15]} Qd6 {[%emt 0:00:02]} 18. Qxd6 {[%emt 0:04:12]} Rxd6 {[%emt 0:00:06]} 19. gxh7 {[%emt 0:00:03]} Rxh7 {[%emt 0:00:21]} 20. Raf1 $146 {[%emt 0:03:16]} ({Predecessor:} 20. Nf3 Nd8 21. Rf5 g6 22. Rf8 Re7 23. e5 Rd5 24. Rg8 Kd7 25. Rxg6 Nc6 26. e6+ Rxe6 27. Rxe6 Kxe6 {1-0 Mamedyarov,S (2758)-Dominguez Perez,L (2754) Saint Louis Rapid 2022 (9)}) 20... b6 {[%emt 0:04:06]} 21. Rc1 {[%emt 0:04:59]} Rd7 {[%emt 0:02:18]} 22. Rxd7 {[%emt 0:00:02]} Kxd7 23. Nf3 {[%emt 0:00:02]} Rh5 {[%emt 0:04:10]} 24. Rd1 {[%emt 0:00:34]} Ke6 {[%emt 0:00:54]} 25. Kf2 {[%emt 0:07:36]} Rc5 {[%emt 0:02:50]} 26. Ke2 {[%emt 0:00:31]} Rc2+ {[%emt 0:05:08]} 27. Rd2 {[%emt 0:00:02]} Rc1 {[%emt 0:00:01]} 28. a3 {[%emt 0:01:06]} a5 {[%emt 0:00:59]} 29. h4 {[%emt 0:00:16]} g6 {[%emt 0:01:59]} 30. Kf2 {[%emt 0:00:16]} Ne5 {[%emt 0:05:00]} 31. Nxd4+ {[%emt 0:00:04]} Kf6 {[%emt 0:00:01]} 32. Ne2 {[%emt 0:00:51]} Rb1 {[%emt 0:01:34]} 33. Nc3 {[%emt 0:00:07]} Rxb2 {[%emt 0:00:02]} 34. Nd5+ {[%emt 0:00:01]} Kf7 {[%emt 0:00:09]} 35. Rxb2 {[%emt 0:00:01]} Nd3+ {[%emt 0:00:01]} 36. Kf3 {[%emt 0:00:27]} Nxb2 {[%emt 0:00:04]} 37. Nxc7 {[%emt 0:00:01]} Nc4 {[%emt 0:00:16]} 38. Nb5 {[%emt 0:00:01]} a4 {[%emt 0:00:38]} 39. Kf4 {[%emt 0:00:36]} Ke6 {[%emt 0:02:07]} 40. g4 {[%emt 0:00:29]} Kf6 {[%emt 0:00:08]} 41. h5 $2 {[%emt 0:01:04]} (41. Nc7 $18 {and the rest is easy.}) 41... g5+ $16 {[%emt 0:00:20]} 42. Kf3 {[%emt 0:00:06]} Ne5+ $2 {[%emt 0:01:58]} (42... Kg7 $16) 43. Kg3 $18 {[%emt 0:00:05]} Nc4 {[%emt 0:00:01]} 44. Nc3 {[%emt 0:00:16]} Kf7 $2 {[%emt 0:00:08]} (44... Nxa3 45. Nd5+ (45. Nxa4 Nc4 $14) 45... Kf7) 45. Nxa4 $18 {[%emt 0:00:09]} b5 {[%emt 0:00:02]} 46. Nc5 {[%emt 0:00:16]} Nxa3 {[%emt 0:00:04]} 47. e5 {[%emt 0:00:02]} Nc4 {[%emt 0:00:47] [#]} 48. Ne4 $2 {[%emt 0:00:30]} ({White must play} 48. Nd3 $1 $18) 48... Nxe5 $11 {[%emt 0:00:07]} 49. Nd6+ {[%emt 0:00:01]} Ke6 {[%emt 0:01:04]} 50. Nxb5 {[%emt 0:00:01]} Nf7 {[%emt 0:00:02]} 51. Nd4+ {[%emt 0:00:14]} Ke5 {[%emt 0:00:23]} 52. Nf5 {[%emt 0:00:05]} Ke4 {[%emt 0:00:14]} 53. Ne7 {[%emt 0:00:31]} Nh6 {[%emt 0:00:45]} 54. Nc6 {[%emt 0:00:02]} Nf7 {[%emt 0:00:23]} 55. Nb8 {[%emt 0:00:12]} Ke3 {[%emt 0:01:43]} 56. Nd7 {[%emt 0:00:13]} Ke4 {[%emt 0:00:11]} 57. Nc5+ {[%emt 0:00:01]} Ke3 {[%emt 0:00:41]} 58. Ne6 {[%emt 0:00:15]} Ke4 {[%emt 0:00:05]} 59. Nc7 {[%emt 0:00:14]} Nh6 {[%emt 0:00:41] [#]} (59... Nd6 $1 $11) 60. Ne8 {[%emt 0:00:09]} (60. Nb5 $1 $16) 60... Nf7 $1 $11 {[%emt 0:02:15]} 61. Nf6+ {[%emt 0:00:01]} Ke5 {[%emt 0:00:03]} 62. Ng8 {[%emt 0:00:02]} Ke4 {[%emt 0:00:11]} 63. h6 {[%emt 0:00:10]} Ke5 {[%emt 0:01:12]} 64. Kf3 {[%emt 0:00:10]} Ke6 {[%emt 0:00:20]} 65. h7 {[%emt 0:00:18]} Nh8 {[%emt 0:00:01]} 66. Ke4 $1 {[%emt 0:00:03]} Kf7 {[%emt 0:00:31]} 67. Kf5 {[%emt 0:00:16]} Kg7 {[%emt 0:00:02]} 68. Ne7 {[%emt 0:00:26]} Nf7 {[%emt 0:00:50]} 69. Ke6 {[%emt 0:00:02]} Nd8+ {[%emt 0:00:13]} 70. Kd7 {[%emt 0:00:17]} Nf7 {[%emt 0:00:01]} 71. Ke6 {[%emt 0:00:02]} Nd8+ {[%emt 0:00:01]} 1/2-1/2